fUSD/lending_fUSD_20250324
["ID","MTS","AMOUNT","RATE_DAILY","PERIOD"]
[356628354,1742851832086,-2423.82549926,0.00012,2]
[356628355,1742851832098,-10518.65986611,0.00012,2]
[356628356,1742851832109,-892.55129881,0.00012,2]
[356628357,1742851832121,-1369.43167622,0.00012,2]
[356628358,1742851832132,-65859.65616076,0.00012,2]
[356628369,1742851837708,-19783.16853405,0.00012,2]
[356628370,1742851837720,-169503.83409735,0.00012,2]
[356628371,1742851837763,-394.85200417,0.00012,2]
[356628372,1742851837774,-18546.90227974,0.00012,2]
[356628373,1742851837822,-929.41239997,0.00012,2]
[356628374,1742851837880,-582.58206715,0.00012,2]
[356628375,1742851837938,-775.44461026,0.00012,2]
[356628383,1742851839938,-266.88,0.00012,2]
[356628384,1742851840111,-285.09567796,0.00012,2]
[356628385,1742851840186,-522.91188455,0.00012,2]
[356628386,1742851840256,-2407.17336082,0.00012,2]
[356628396,1742851844411,-7529.9995,0.00012,2]
[356628399,1742851846137,-488.53388344,0.00012,2]
[356628400,1742851846148,-2877.12511633,0.00012,2]
[356628412,1742853031945,-175.810964,0.00011701,2]
[356628413,1742853031955,-203.01,0.0001176,2]
[356628414,1742853031965,-1021.11093957,0.000119,2]
[356628415,1742853031978,-1127.15916043,0.000119,2]
[356628416,1742853031989,-2814.57338512,0.00012,2]
[356628417,1742853032001,-6335.96823252,0.00012,2]
[356628418,1742853032012,-298.695,0.00012,2]
[356628419,1742853032025,-700.0,0.00012,2]
[356628420,1742853032037,-4232.56611195,0.00012,2]
[356628421,1742853032048,-7039.80060688,0.00012,2]
[356628422,1742853032062,-3180.34249234,0.00012,2]
[356628423,1742853032073,-440.45399923,0.00012,2]
[356628424,1742853032085,-2638.46326008,0.00012,2]
[356628425,1742853032118,-350.49185435,0.00012,2]
[356628426,1742853032130,-670.10007224,0.00012,2]
[356628427,1742853032176,-540.0,0.00012,2]
[356628428,1742853032187,-385.47,0.00012,2]
[356628429,1742853032198,-1885.6802487,0.00012,2]
[356628430,1742853032234,-445.49189213,0.00012,2]
[356628431,1742853032246,-1362.72500668,0.00012,2]
[356628432,1742853032256,-2453.44955276,0.00012,2]
[356628433,1742853032267,-5061.16061818,0.00012,2]
[356628434,1742853032278,-325.10110434,0.00012,2]
[356628435,1742853032296,-7702.67026752,0.00012,2]
[356628436,1742853032307,-255.76015949,0.00012,2]
[356628437,1742853032318,-376.230008,0.00012,2]
[356628438,1742853032329,-322.9200006,0.00012,2]
[356628439,1742853032340,-3643.29466563,0.00012,2]
[356628440,1742853032362,-595.39054192,0.00012,2]
[356628442,1742853032373,-4873.03523845,0.00012,2]
[356628444,1742853032384,-9280.08472226,0.00012,2]
[356628997,1742853037914,-1140.74733743,0.00012,2]
[356628999,1742853037926,-603.465158,0.00012,2]
[356629001,1742853037937,-848.6840014,0.00012,2]
[356629003,1742853037948,-199897.59800068,0.00012,2]
[356629007,1742853037971,-363.240668,0.00012,2]
[356629014,1742853038031,-20190.33754832,0.00012,2]
[356629016,1742853038043,-3156.42650307,0.00012,2]
[356629018,1742853038055,-9061.49703077,0.00012,2]
[356629023,1742853038092,-11323.77274692,0.00012,2]
[356629030,1742853038151,-2854.40002,0.00012,2]
[356629037,1742853038209,-2129.31478627,0.00012,2]
[356629040,1742853038221,-36737.33899438,0.00012,2]
[356629269,1742853040426,-963.19752,0.00012,2]
[356629271,1742853040437,-528.40059218,0.00012,2]
[356629277,1742853040482,-1375.4138,0.00012,2]
[356629284,1742853040541,-96155.05713446,0.00012,2]
[356629286,1742853040552,-116874.16449039,0.00012,2]
[356629292,1742853040599,-4594.79109732,0.00012,2]
[356629300,1742853040658,-1011.06427204,0.00012,2]
[356629540,1742853043052,-11869.66841083,0.00012,2]
[356629542,1742853043065,-13880.54347025,0.00012,2]
[356629554,1742853043164,-235642.73412605,0.00012,2]
[356629556,1742853043175,-2109.66687147,0.00012,2]
[356629694,1742853044573,-12888.52295393,0.00012,2]
[356629696,1742853044584,-407.99666842,0.00012,2]
[356629698,1742853044595,-1109.74314191,0.00012,2]
[356629700,1742853044608,-6428.85812071,0.00012,2]
[356629703,1742853044619,-72462.32164005,0.00012,2]
[356629705,1742853044635,-111207.3299829,0.00012,2]
[356629707,1742853044647,-1943.25529658,0.00012,2]
[356629710,1742853044658,-2803.85817402,0.00012,2]
[356629751,1742853046027,-96154.74274043,0.00012,2]
[356629752,1742853046135,-359.06319849,0.00012,2]
[356629801,1742854232228,-250.0,0.00011,2]
[356629802,1742854232238,-281.29530193,0.0001187,2]
[356629803,1742854232248,-150.0,0.00011875,2]
[356629804,1742854232258,-150.0,0.00011879,2]
[356629805,1742854232267,-13.90905807,0.0001188,2]
[356629806,1742854232456,-1582.22003,0.0001188,2]
[356629807,1742854232470,-1865.45817321,0.0001188,2]
[356629808,1742854232482,-12255.20306442,0.0001188,2]
[356629831,1742854238155,-345.97465669,0.0001188,2]
[356629832,1742854238167,-661.21728265,0.0001188,2]
[356629833,1742854238179,-735.0921918,0.0001188,2]
[356629834,1742854238190,-463.91052729,0.0001188,2]
[356629835,1742854238202,-707.50000005,0.0001188,2]
[356629836,1742854238214,-16098.20203296,0.0001188,2]
[356629837,1742854238229,-3476.6,0.0001188,2]
[356629838,1742854238241,-13884.37441458,0.0001188,2]
[356629839,1742854238250,-14513.12597514,0.0001188,2]
[356629840,1742854238260,-1769.9121,0.000119,2]
[356629841,1742854238269,-454.4224,0.000119,2]
[356629842,1742854238279,-7226.4375,0.000119,2]
[356629843,1742854238289,-829.199,0.000119,2]
[356629844,1742854238298,-29427.8885,0.000119,2]
[356629845,1742854238307,-856.4769,0.000119,2]
[356629846,1742854238317,-471.4584,0.000119,2]
[356629847,1742854238326,-908.42218664,0.000119,2]
[356629848,1742854238339,-354.00853778,0.000119,2]
[356629849,1742854238349,-295.29567124,0.000119,2]
[356629850,1742854238358,-504.16156244,0.00011973,2]
[356629851,1742854238367,-501.57357659,0.00011973,2]
[356629852,1742854238376,-152.34339576,0.00011973,2]
[356629853,1742854238386,-160.40118179,0.00011973,2]
[356629854,1742854238395,-12081.32938478,0.00012,2]
[356629855,1742854238412,-1520.0,0.00012,2]
[356629856,1742854238423,-289.80501746,0.00012,2]
[356629857,1742854238434,-835.71625286,0.00012,2]
[356629858,1742854238449,-445.42957939,0.00012,2]
[356629859,1742854238468,-17770.15287092,0.00012,2]
[356629867,1742854240327,-437.81029527,0.00012,2]
[356629868,1742854240389,-8091.70221449,0.00012,2]
[356629869,1742854240401,-4461.00142383,0.00012,2]
[356629870,1742854240413,-49995.12606253,0.00012,2]
[356629871,1742854240609,-295.2679983,0.00012,2]
[356629872,1742854240775,-732.18335078,0.00012,2]
[356629888,1742854243301,-763.42564321,0.00012,2]
[356629889,1742854243360,-5210.18697479,0.00012,2]
[356629890,1742854243371,-11459.32520293,0.00012,2]
[356629891,1742854243422,-252.36442221,0.00012,2]
[356629892,1742854243435,-2191.50791231,0.00012,2]
[356629893,1742854243479,-720.79,0.00012,2]
[356629894,1742854243490,-646.2,0.00012,2]
[356629895,1742854243538,-705.19445408,0.00012,2]
[356629896,1742854243598,-828942.12681716,0.00012,2]
[356629897,1742854243609,-200.0,0.00012,2]
[356629898,1742854243619,-150.0,0.00012166,2]
[356629899,1742854243628,-220.82135323,0.000129,2]
[356629900,1742854243638,-255.0,0.0001296,2]
[356629901,1742854243648,-150.0,0.00013057,2]
[356629902,1742854243657,-607.96,0.00013699,2]
[356629903,1742854243667,-275.9497698,0.00013699,2]
[356629904,1742854243676,-524.57480752,0.00013699,2]
[356629905,1742854243686,-500.74454678,0.00013699,2]
[356629906,1742854243695,-500.0,0.00013699,2]
[356629907,1742854243705,-500.0,0.00013699,2]
[356629908,1742854243715,-500.0,0.00013699,2]
[356629909,1742854243724,-500.0,0.00013699,2]
[356629910,1742854243734,-500.0,0.00013699,2]
[356629911,1742854243743,-500.0,0.00013699,2]
[356629912,1742854243753,-500.0,0.00013699,2]
[356629913,1742854243763,-500.0,0.00013699,2]
[356629915,1742854243773,-500.0,0.00013699,2]
[356629917,1742854243782,-500.0,0.00013699,2]
[356629918,1742854243792,-500.0,0.00013699,2]
[356629919,1742854243801,-500.0,0.00013699,2]
[356629920,1742854243811,-500.0,0.00013699,2]
[356629921,1742854243821,-500.0,0.00013699,2]
[356629922,1742854243831,-500.0,0.00013699,2]
[356629923,1742854243840,-500.0,0.00013699,2]
[356629924,1742854243850,-500.0,0.00013699,2]
[356629925,1742854243863,-500.0,0.00013699,2]
[356629926,1742854243882,-500.0,0.00013699,2]
[356629927,1742854243893,-500.0,0.00013699,2]
[356629928,1742854243902,-500.0,0.00013699,2]
[356629929,1742854243911,-500.0,0.00013699,2]
[356629930,1742854243921,-500.0,0.00013699,2]
[356629931,1742854243931,-500.0,0.00013699,2]
[356629932,1742854243940,-630.50785248,0.00013699,2]
[356629933,1742854243949,-500.0,0.00013699,2]
[356629934,1742854243959,-500.0,0.00013699,2]
[356629935,1742854243968,-500.0,0.00013699,2]
[356629936,1742854243977,-500.0,0.00013699,2]
[356629937,1742854243987,-500.0,0.00013699,2]
[356629938,1742854243997,-161.12673941,0.000137,2]
[356629939,1742854244006,-500.0,0.000137,2]
[356629940,1742854244016,-1200.0,0.000137,2]
[356629941,1742854244025,-317.51307057,0.000137,2]
[356629942,1742854244035,-500.54472804,0.000137,2]
[356629943,1742854244045,-160.4024452,0.000137,2]
[356629944,1742854244054,-213.35232862,0.000137,2]
[356629945,1742854244065,-151.3559722,0.00013729,2]
[356629946,1742854244074,-500.0,0.00013729,2]
[356629947,1742854244084,-500.0,0.00013729,2]
[356629948,1742854244094,-500.55045291,0.00013729,2]
[356629949,1742854244103,-501.71226786,0.00013743,2]
[356629950,1742854244112,-313.0562459,0.00013743,2]
[356629951,1742854244122,-453.79691718,0.00013743,2]
[356629952,1742854244132,-37846.44106947,0.0001375,2]
[356629953,1742854244142,-151.35584221,0.00013773,2]
[356629954,1742854244151,-500.0,0.00013773,2]
[356629955,1742854244160,-626.69615438,0.00013773,2]
[356629956,1742854244170,-300.69831396,0.00013773,2]
[356629957,1742854244179,-420.54922844,0.00013773,2]
[356629958,1742854244189,-500.0,0.00013773,2]
[356629959,1742854244199,-500.5882078,0.00013773,2]
[356629960,1742854244209,-158.49581411,0.00013773,2]
[356629961,1742854244222,-604.26587782,0.00013773,2]
[356629962,1742854244232,-647.6509695,0.00013773,2]
[356629963,1742854244241,-433.0,0.00014136,2]
[356629964,1742854244251,-200.0,0.00015073,2]
[356629965,1742854244261,-736.0,0.00015431,2]
[356629966,1742854244270,-908.42218655,0.00016122,2]
[356629967,1742854244280,-188.06,0.00016712,2]
[356629968,1742854244290,-262.0,0.00016833,2]
[356629969,1742854244299,-607.96,0.00016895,2]
[356629970,1742854244309,-528.28,0.000179,2]
[356629971,1742854244318,-200.0,0.00018082,2]
[356629972,1742854244328,-8106.43,0.00018533,2]
[356629973,1742854244341,-999.99,0.00018533,2]
[356629974,1742854244351,-483.3,0.00018533,2]
[356629975,1742854244360,-150.99,0.00018533,2]
[356629976,1742854244369,-9999.99,0.00018533,2]
[356629977,1742854244379,-295.29567118,0.00018567,2]
[356629978,1742854244389,-381.56713579,0.00019,2]
[356629979,1742854244398,-33890.71854143,0.00019,2]
[356629980,1742854244407,-159.69,0.00019,2]
[356629981,1742854244416,-194.56469243,0.00019,2]
[356629982,1742854244426,-2992.02593312,0.00019139,2]
[356629983,1742854244436,-354.0,0.000192,2]
[356629984,1742854244445,-943.0,0.000192,2]
[356629985,1742854244454,-202.46,0.00019219,2]
[356629986,1742854244463,-9999.99,0.00019339,2]
[356629987,1742854244473,-9304.33,0.00019339,2]
[356629988,1742854244482,-265.35,0.00019339,2]
[356629989,1742854244492,-3559.78,0.00019339,2]
[356629990,1742854244501,-1177.5,0.00019339,2]
[356629991,1742854244512,-1527.2,0.00019339,2]
[356629992,1742854244522,-23900.0,0.00019568,2]
[356629993,1742854244531,-606.63,0.00019663,2]
[356629994,1742854244540,-1067.39,0.00019663,2]
[356629995,1742854244550,-2000.0,0.0002,4]
[356629996,1742854244560,-151.48,0.0002,2]
[356629997,1742854244569,-151.48,0.0002,2]
[356629998,1742854244578,-151.48,0.0002,2]
[356629999,1742854244588,-151.48,0.0002,2]
[356630000,1742854244597,-151.48,0.0002,2]
[356630001,1742854244606,-607.96,0.00020091,2]
[356630002,1742854244616,-3245.2,0.00020112,2]
[356630003,1742854244625,-151.0,0.00020112,2]
[356630004,1742854244635,-151.0,0.00020112,2]
[356630005,1742854244645,-151.0,0.00020112,2]
[356630006,1742854244654,-307.566868,0.00020112,2]
[356630007,1742854244663,-307.566868,0.00020112,2]
[356630008,1742854244673,-151.0,0.00020112,2]
[356630009,1742854244682,-151.0,0.00020112,2]
[356630010,1742854244691,-151.0,0.00020112,2]
[356630011,1742854244700,-151.0,0.00020112,2]
[356630012,1742854244710,-151.0,0.00020112,2]
[356630013,1742854244720,-528.28,0.00020164,2]
[356630014,1742854244729,-908.42218655,0.00020344,2]
[356630015,1742854244739,-188.06,0.00020395,2]
[356630016,1742854244748,-7941.0,0.00020822,2]
[356630017,1742854244758,-2000.0,0.00021,4]
[356630018,1742854244768,-166.66,0.00021186,2]
[356630019,1742854244777,-5067.22,0.0002137,2]
[356630020,1742854244787,-166.66,0.00021885,2]
[356630021,1742854244797,-150.0,0.00021917,2]
[356630022,1742854244806,-2000.0,0.00022,4]
[356630023,1742854244815,-606.63,0.00022121,2]
[356630024,1742854244825,-528.28,0.00022428,2]
[356630025,1742854244835,-166.66,0.00022585,2]
[356630026,1742854244844,-2000.0,0.00023,4]
[356630027,1742854244853,-166.66,0.00023284,2]
[356630028,1742854244863,-150.0,0.00023287,2]
[356630029,1742854244873,-607.96,0.00023288,2]
[356630030,1742854244882,-327.88,0.00023836,2]
[356630031,1742854244892,-166.66,0.00023983,2]
[356630032,1742854244901,-2000.0,0.00024,4]
[356630033,1742854244911,-188.06,0.00024078,2]
[356630034,1742854244921,-4578.77,0.00024174,2]
[356630035,1742854244930,-10200.83,0.00024174,2]
[356630036,1742854244940,-3618.76,0.00024174,2]
[356630037,1742854244949,-908.42218655,0.00024567,2]
[356630038,1742854244959,-606.63,0.00024578,2]
[356630039,1742854244969,-150.0,0.00024657,2]
[356630040,1742854244979,-166.66,0.00024683,2]
[356630041,1742854244989,-528.28,0.00024692,2]
[356630042,1742854244999,-354.42129086,0.000247,2]
[356630043,1742854245009,-943.60196045,0.000247,2]
[356630044,1742854245018,-151.48,0.0002479,2]
[356630045,1742854245029,-151.48,0.0002479,2]
[356630046,1742854245039,-151.48,0.0002479,2]
[356630047,1742854245049,-2861.43,0.00024799,2]
[356630048,1742854245059,-151.0,0.000248,7]
[356630049,1742854245069,-153.545207,0.000248,7]
[356630050,1742854245079,-154.381087,0.000248,7]
[356630051,1742854245089,-226.585035,0.000248,7]
[356630052,1742854245099,-214.64099,0.000248,7]
[356630053,1742854245108,-151.0,0.000248,7]
[356630054,1742854245119,-151.0,0.000248,7]
[356630055,1742854245129,-151.0,0.000248,7]
[356630056,1742854245140,-151.0,0.000248,7]
[356630057,1742854245150,-307.566868,0.000248,7]
[356630058,1742854245159,-307.566868,0.000248,7]
[356630059,1742854245171,-151.0,0.000248,7]
[356630060,1742854245185,-491554.463055,0.000248,2]
[356630061,1742854245195,-151.0,0.000248,7]
[356630062,1742854245205,-151.0,0.000248,7]
[356630063,1742854245215,-151.0,0.000248,7]
[356630064,1742854245226,-151.0,0.000248,7]
[356630065,1742854245236,-151.0,0.0002489,7]
[356630066,1742854245246,-243.499633,0.0002489,7]
[356630067,1742854245256,-151.0,0.0002489,7]
[356630068,1742854245266,-151.0,0.0002489,7]
[356630069,1742854245276,-307.566868,0.0002489,7]
[356630070,1742854245285,-307.566868,0.0002489,7]
[356630071,1742854245294,-151.0,0.0002489,7]
[356630072,1742854245304,-57829.93683,0.0002489,2]
[356630073,1742854245313,-151.0,0.0002489,7]
[356630074,1742854245322,-151.48,0.0002489,2]
[356630075,1742854245332,-151.48,0.0002489,2]
[356630076,1742854245344,-151.48,0.0002489,2]
[356630077,1742854245354,-151.0,0.000249,7]
[356630078,1742854245363,-151.0,0.000249,7]
[356630079,1742854245372,-151.0,0.000249,7]
[356630080,1742854245383,-151.0,0.000249,7]
[356630081,1742854245392,-307.566868,0.000249,7]
[356630082,1742854245402,-307.566868,0.000249,7]
[356630083,1742854245412,-151.0,0.000249,7]
[356630084,1742854245422,-414112.565695,0.000249,2]
[356630085,1742854245432,-151.0,0.000249,7]
[356630086,1742854245441,-151.0,0.000249,7]
[356630087,1742854245450,-151.0,0.000249,7]
[356630088,1742854245460,-28914.968415,0.0002497,2]
[356630089,1742854245469,-1086.0822405,0.00025,2]
[356630090,1742854245478,-200.0,0.00025,2]
[356630091,1742854245487,-2000.0,0.00025,4]
[356630092,1742854245497,-154.38,0.00025026,2]
[356630093,1742854245506,-200.0,0.0002525,2]
[356630094,1742854245515,-200.0,0.00025503,2]
[356630095,1742854245525,-200.0,0.00025758,2]
[356630096,1742854245534,-162.408,0.0002589,11]
[356630097,1742854245544,-2000.0,0.00026,4]
[356630098,1742854245554,-200.0,0.00026015,2]
[356630099,1742854245563,-150.0,0.00026027,2]
[356630100,1742854245572,-17254.6902373,0.000264,2]
[356630101,1742854245582,-151.0,0.0002641,7]
[356630102,1742854245591,-151.0,0.0002641,7]
[356630103,1742854245599,-1280.0,0.00026411,2]
[356630104,1742854245608,-642.0,0.00026411,2]
[356630105,1742854245617,-2035.0,0.00026411,2]
[356630106,1742854245626,-1394.779,0.00026411,2]
[356630107,1742854245635,-572.0,0.00026411,2]
[356630108,1742854245644,-1272.0,0.00026411,2]
[356630109,1742854245653,-787.0,0.00026411,2]
[356630110,1742854245662,-896.0,0.00026411,2]
[356630111,1742854245671,-4083.0,0.00026411,2]
[356630112,1742854245680,-1430.0,0.00026411,2]
[356630113,1742854245689,-542.0,0.00026411,2]
[356630114,1742854245698,-1014.0,0.00026411,2]
[356630115,1742854245707,-3938.0,0.00026411,2]
[356630116,1742854245715,-190.039,0.00026411,2]
[356630117,1742854245724,-40.69864598,0.00026484,2]
[356630157,1742854247418,-567.26135402,0.00026484,2]
[356630159,1742854247427,-1000.0,0.00026693,2]
[356630161,1742854247436,-151.48,0.00026723,2]
[356630163,1742854247445,-250.21274152,0.00026733,2]
[356630166,1742854247459,-9427.39296324,0.00026733,2]
[356630168,1742854247468,-9677.60570474,0.00026733,2]
[356630170,1742854247478,-9677.60570474,0.00026733,2]
[356630172,1742854247487,-176.18791115,0.000268,2]
[356630202,1742855394391,168.0,0.00031556,120]
[356630222,1742855432393,-250.0,0.00011,2]
[356630224,1742855432403,-3144.64244113,0.00012,2]
[356630225,1742855432416,-872.98459677,0.00012,2]
[356630226,1742855432439,-704.62045861,0.00012,2]
[356630227,1742855432451,-1368.93615679,0.00012,2]
[356630228,1742855432462,-5898.70911555,0.00012,2]
[356630229,1742855432567,-393.04398086,0.00012,2]
[356630230,1742855432579,-2454.00347354,0.00012,2]
[356630231,1742855432646,-2619.24906412,0.00012,2]
[356630232,1742855432658,-2937.37850542,0.00012,2]
[356630233,1742855432669,-981.13199423,0.00012,2]
[356630234,1742855432681,-1569.56510515,0.00012,2]
[356630235,1742855432692,-412.40818989,0.00012,2]
[356630236,1742855432704,-219627.6912143,0.00012,2]
[356630237,1742855432750,-5429.36626318,0.00012,2]
[356630238,1742855432763,-545.44642781,0.00012,2]
[356630243,1742855438309,-2281.87364935,0.00012,2]
[356630244,1742855438321,-20029.8251868,0.00012,2]
[356630245,1742855438332,-1871.295,0.00012,2]
[356630246,1742855438343,-5547.74016914,0.00012,2]
[356630247,1742855438354,-289221.34613799,0.00012,2]
[356630248,1742855438365,-319.45791633,0.00012,2]
[356630249,1742855438376,-46068.94979608,0.00012,2]
[356630250,1742855438409,-12149.5082939,0.00012,2]
[356630251,1742855438421,-5853.38940005,0.00012,2]
[356630252,1742855438432,-326.45,0.00012,2]
[356630253,1742855438444,-4230.66,0.00012,2]
[356630254,1742855438524,-17567.02399998,0.00012,2]
[356630255,1742855438536,-326.48837862,0.00012,2]
[356630256,1742855438548,-1589.84917825,0.00012,2]
[356630258,1742855440476,-653.61684693,0.00012,2]
[356630259,1742855440622,-634.99624318,0.00012,2]
[356630260,1742855440701,-1290.25170772,0.00012,2]
[356630261,1742855440712,-1948.6875926,0.00012,2]
[356630262,1742855440724,-414.99081543,0.00012,2]
[356630274,1742855446338,-872.79280454,0.00012,2]
[356630277,1742855446350,-296.24206032,0.00012,2]
[356630523,1742856631598,-434.73457709,0.00011698,2]
[356630524,1742856631608,-384.533,0.0001176,2]
[356630525,1742856631618,-4163.1682,0.000119,2]
[356630526,1742856631629,-2789.78303309,0.000119,2]
[356630527,1742856631639,-545.05331193,0.000119,2]
[356630528,1742856631649,-279.9395,0.000119,2]
[356630529,1742856631659,-5292.42640267,0.0001199,2]
[356630530,1742856631668,-150.0,0.00011999,2]
[356630531,1742856631679,-327.6940239,0.00012,2]
[356630532,1742856631691,-1866.47148544,0.00012,2]
[356630533,1742856631704,-550.54334296,0.00012,2]
[356630534,1742856631716,-979.02,0.00012,2]
[356630535,1742856631749,-1752.7,0.00012,2]
[356630536,1742856631859,-113821.50000002,0.00012,2]
[356630566,1742856637454,-1752.81912359,0.00012,2]
[356630567,1742856637624,-1380.94,0.00012,2]
[356630568,1742856637720,-3353.94450525,0.00012,2]
[356630570,1742856639637,-254.98680003,0.00012,2]
[356630571,1742856639650,-901.32792281,0.00012,2]
[356630572,1742856639895,-352.49511463,0.00012,2]
[356630573,1742856639920,-260689.44654137,0.00012,2]
[356630574,1742856639931,-1139.22878096,0.00012,2]
[356630575,1742856639943,-952.47687904,0.00012,2]
[356630579,1742856642709,-479.93990961,0.00012,2]
[356630580,1742856645684,-397.96480474,0.00012,2]
[356630581,1742856645700,-16939.67498773,0.00012,2]
[356630587,1742857613500,1000.0,0.00025,60]
[356630588,1742857744222,2166.789,0.0003155,30]
[356630601,1742857831855,-250.0,0.00011,2]
[356630602,1742857831865,-302.18606528,0.0001155,2]
[356630603,1742857831876,-150.0,0.00011899,2]
[356630604,1742857831886,-300.0,0.00011899,2]
[356630605,1742857831895,-6075.20071104,0.000119,2]
[356630606,1742857831907,-680.337126,0.000119,2]
[356630607,1742857831919,-1437.26919482,0.000119,2]
[356630608,1742857831931,-16524.09343048,0.000119,2]
[356630609,1742857831942,-2084.775,0.000119,2]
[356630610,1742857831958,-4503.65794637,0.000119,2]
[356630611,1742857831973,-2161.97483759,0.000119,2]
[356630628,1742857837678,-2790.0,0.000119,2]
[356630629,1742857837690,-1194.85426525,0.000119,2]
[356630630,1742857837701,-500.0,0.000119,2]
[356630631,1742857837714,-8224.38326497,0.000119,2]
[356630632,1742857837743,-763.50334123,0.000119,2]
[356630633,1742857837755,-868.40584629,0.000119,2]
[356630634,1742857837770,-467.05128928,0.000119,2]
[356630635,1742857837882,-1055.390328,0.000119,2]
[356630636,1742857837893,-5474.49699726,0.000119,2]
[356630637,1742857837905,-9222.36802142,0.000119,2]
[356630638,1742857837914,-1084.20177762,0.000119,2]
[356630639,1742857837925,-324.448985,0.000119,2]
[356630640,1742857837937,-1449.66493444,0.000119,2]
[356630641,1742857837946,-979.16477624,0.000119,2]
[356630642,1742857837958,-20.83522376,0.000119,2]
[356630643,1742857837968,-584.47444581,0.000119,2]
[356630644,1742857837980,-415.52555419,0.000119,2]
[356630645,1742857837989,-2500.0,0.000119,2]
[356630646,1742857837999,-826.69,0.00011977,2]
[356630647,1742857838009,-13259.13641033,0.00012,2]
[356630648,1742857838020,-5706.13483158,0.00012,2]
[356630650,1742857840046,-8743.55698953,0.00012,2]
[356630651,1742857840058,-436.698,0.00012,2]
[356630652,1742857840076,-1263.73892808,0.00012,2]
[356630668,1742857843096,-1888.5729569,0.00012,2]
[356630682,1742857845869,-2018.18665731,0.00012,2]
[356630683,1742857846023,-626.95399362,0.00012,2]
[356630716,1742858344221,154.38,0.00010755,2]
[356630717,1742858631638,-302.18606529,0.00011526,2]
[356630718,1742858631662,-3042.1791921,0.0001164,2]
[356630719,1742858631687,-300.0,0.00011899,2]
[356630720,1742858631711,-1000.0,0.000119,2]
[356630721,1742858631736,-1062.4558,0.000119,2]
[356630722,1742858631761,-559.7368808,0.000119,2]
[356630723,1742858631786,-2923.7182,0.000119,2]
[356630724,1742858631810,-375.8702,0.000119,2]
[356630725,1742858631834,-2500.0,0.000119,2]
[356630726,1742858631861,-28433.85366181,0.00012,2]
[356630727,1742858633437,-40500.0,0.00012,2]
[356630728,1742858700606,168.212,0.00012,6]
[356630742,1742859011126,785.35,0.00010714,2]
[356630743,1742859019885,168.212,0.00012,6]
[356630744,1742859031931,-250.0,0.00011,2]
[356630745,1742859031941,-2481.7849639,0.0001164,2]
[356630746,1742859031950,-300.0,0.00011899,2]
[356630747,1742859031959,-2572.48412739,0.000119,2]
[356630749,1742859031969,-169.1715,0.000119,2]
[356630751,1742859031978,-2149.4652,0.000119,2]
[356630753,1742859031989,-1496.75599124,0.000119,2]
[356630754,1742859031998,-10229.3333,0.000119,2]
[356630755,1742859032008,-331.60867293,0.000119,2]
[356630756,1742859032017,-2500.0,0.000119,2]
[356630757,1742859032027,-237191.43204015,0.00012,2]
[356630758,1742859032044,-1545.26590244,0.00012,2]
[356630759,1742859032136,-743.70416333,0.00012,2]
[356630760,1742859032147,-10716.64056156,0.00012,2]
[356630766,1742859037884,-1586.75425876,0.00012,2]
[356630767,1742859037919,-1839.093781,0.00012,2]
[356630768,1742859037954,-2928.0,0.00012,2]
[356630769,1742859038081,-654.0,0.00012,2]
[356630770,1742859038094,-1379.1299994,0.00012,2]